fUSD/lending_fUSD_20240422
["ID","MTS","AMOUNT","RATE_DAILY","PERIOD"]
[323158016,1713747040695,-150.32,0.00014,2]
[323158017,1713747040704,-150.32,0.00014,2]
[323158018,1713747040715,-150.32,0.00014,2]
[323158019,1713747040723,-150.32,0.00014,2]
[323158020,1713747040733,-150.32,0.00014,2]
[323158021,1713747040742,-150.32,0.00014,2]
[323158022,1713747040752,-150.32,0.00014,2]
[323158023,1713747040762,-150.32,0.00014,2]
[323158024,1713747040771,-150.32,0.00014,2]
[323158025,1713747040782,-150.32,0.00014,2]
[323158026,1713747040791,-150.32,0.00014,2]
[323158027,1713747040801,-150.32,0.00014,2]
[323158028,1713747040810,-150.32,0.00014,2]
[323158029,1713747040819,-20000.0,0.00014,2]
[323158030,1713747041021,-40000.0,0.00014088,2]
[323158031,1713747041045,-30030.94698611,0.00014138,2]
[323158032,1713747041054,-151.0,0.00014138,2]
[323158033,1713747041064,-171.242639,0.00014138,2]
[323158034,1713747041073,-246.589348,0.00014138,2]
[323158035,1713747041082,-151.0,0.00014138,2]
[323158036,1713747041091,-151.0,0.00014138,2]
[323158037,1713747041100,-500.0,0.00014139,2]
[323158038,1713747041109,-163.88,0.0001415,2]
[323158039,1713747041118,-150.0,0.00014152,2]
[323158040,1713747041127,-1129.47160073,0.00014214,2]
[323158041,1713747041136,-1085.43163728,0.00014214,2]
[323158042,1713747041145,-480.0,0.00014234,2]
[323158043,1713747041154,-34460.0,0.000143,2]
[323158044,1713747041163,-151.0,0.000143,2]
[323158045,1713747041172,-151.0,0.000143,2]
[323158046,1713747041181,-151.0,0.000143,2]
[323158047,1713747041190,-151.0,0.000143,2]
[323158048,1713747041200,-151.0,0.000143,2]
[323158049,1713747041209,-151.0,0.000143,2]
[323158050,1713747041218,-151.0,0.000143,2]
[323158051,1713747041227,-151.0,0.000143,2]
[323158052,1713747041236,-151.0,0.000143,2]
[323158053,1713747041245,-151.0,0.000143,2]
[323158054,1713747041254,-5708.48103484,0.00014349,2]
[323158055,1713747041263,-5708.48103484,0.00014355,2]
[323158056,1713747041272,-800.0,0.00014356,2]
[323158057,1713747041283,-159.28690721,0.00014358,2]
[323158058,1713747041292,-5708.48103484,0.00014362,2]
[323158059,1713747041301,-5708.48103484,0.00014365,2]
[323158060,1713747041310,-5708.48103484,0.00014371,2]
[323158061,1713747041320,-5708.48103484,0.00014373,2]
[323158062,1713747041329,-5708.48103484,0.00014377,2]
[323158063,1713747041338,-200.0,0.00014387,2]
[323158064,1713747041347,-200.0,0.00014387,2]
[323158065,1713747041356,-500.0,0.00014387,2]
[323158066,1713747041365,-200.0,0.00014387,2]
[323158067,1713747041374,-5708.48103484,0.00014388,2]
[323158068,1713747041383,-5708.48103484,0.00014397,2]
[323158069,1713747041392,-28994.790916,0.000144,2]
[323158070,1713747041402,-185.429156,0.000144,2]
[323158071,1713747041411,-151.0,0.000144,2]
[323158072,1713747041420,-151.0,0.000144,2]
[323158073,1713747041429,-8574.53118324,0.00014404,2]
[323158074,1713747041438,-1635.83466339,0.00014404,2]
[323158075,1713747041448,-88155.43848436,0.00014407,2]
[323158076,1713747041457,-800.0,0.00014466,2]
[323158077,1713747041467,-178.8277009,0.00014491,2]
[323158078,1713747041476,-2246.5680987,0.00014491,2]
[323158079,1713747041486,-2443.8672405,0.00014491,2]
[323158080,1713747041495,-800.0,0.00014493,2]
[323158081,1713747041504,-20000.0,0.000145,2]
[323158082,1713747041513,-151.0,0.000145,2]
[323158083,1713747041523,-151.0,0.000145,2]
[323158084,1713747041532,-151.0,0.00014501,2]
[323158085,1713747041541,-151.0,0.00014501,2]
[323158086,1713747041551,-151.0,0.00014501,2]
[323158087,1713747041560,-151.0,0.00014501,2]
[323158088,1713747041570,-214.602242,0.00014501,2]
[323158089,1713747041579,-151.0,0.00014501,2]
[323158090,1713747041588,-151.0,0.00014501,2]
[323158091,1713747041598,-150.01,0.00014503,2]
[323158092,1713747041606,-2322.23965877,0.00014503,2]
[323158093,1713747041615,-10000.0,0.00014504,2]
[323158094,1713747041624,-17811.88,0.00014504,2]
[323158095,1713747041634,-4367.0,0.00014504,2]
[323158096,1713747041643,-1922.8695314,0.00014511,2]
[323158097,1713747041652,-456.375797,0.00014521,2]
[323158098,1713747041661,-983.32670545,0.00014674,2]
[323158099,1713747041672,-151.0,0.00014681,2]
[323158100,1713747041682,-151.0,0.00014681,2]
[323158101,1713747041691,-151.0,0.00014681,2]
[323158102,1713747041704,-1376.133972,0.00014681,2]
[323158103,1713747041714,-1692.612744,0.00014681,2]
[323158104,1713747041723,-917.422647,0.00014681,2]
[323158105,1713747041732,-200.0,0.00014681,2]
[323158106,1713747041741,-4497.771156,0.00014681,2]
[323158107,1713747041750,-628717.56429542,0.00014698,2]
[323158108,1713747041785,-26093.0125582,0.00014698,2]
[323158142,1713747043853,-150.32,0.00014,2]
[323158143,1713747043862,-150.32,0.00014128,2]
[323158144,1713747043871,-150.32,0.00014387,2]
[323158145,1713747043881,-150.32,0.00014397,2]
[323158146,1713747043890,-150.32,0.00014494,2]
[323158147,1713747043899,-226.19543901,0.00014698,2]
[323158148,1713747043937,-217147.63688727,0.00014698,2]
[323158149,1713747046304,-493.706,0.00014698,2]
[323158150,1713747046460,-1884.50933853,0.00014698,2]
[323158155,1713747148446,315.02274737,0.00022,30]
[323158156,1713747242643,305.0,0.00011,2]
[323158157,1713747247439,531.71,0.00011574,2]
[323158159,1713747551024,212.261153,0.00013,120]
[323158160,1713747625350,1750.0,0.00012,2]
[323158163,1713747758428,505.12,0.0001115,2]
[323158165,1713748178269,10000.0,0.000224,30]
[323158166,1713748197880,10000.0,0.000224,30]
[323158173,1713748232118,-322.91174239,0.00012878,2]
[323158174,1713748232294,-356.21377616,0.00012878,2]
[323158175,1713748232411,-11927.73022205,0.00012878,2]
[323158176,1713748232421,-3110.31127576,0.00012879,2]
[323158177,1713748232430,-288.0,0.00012882,2]
[323158178,1713748232439,-250.0,0.00012882,2]
[323158179,1713748232451,-663.72,0.0001292,2]
[323158180,1713748232460,-176.6,0.0001298,2]
[323158185,1713748232753,-6145.82,0.00013013,2]
[323158186,1713748232762,-495.18,0.00013019,2]
[323158187,1713748232772,-150.621,0.00013019,2]
[323158188,1713748232781,-712.0,0.00013156,2]
[323158189,1713748232790,-499.99,0.00013156,2]
[323158190,1713748232799,-505.12,0.00013414,2]
[323158191,1713748232808,-500.0,0.00013425,2]
[323158192,1713748232818,-553.71,0.00013425,2]
[323158193,1713748232827,-534.48151934,0.00013597,2]
[323158194,1713748232839,-1000.0,0.00013598,2]
[323158195,1713748232849,-1460.0,0.00013699,2]
[323158196,1713748232858,-2751.0,0.00013699,2]
[323158197,1713748232868,-500.0,0.00013699,2]
[323158198,1713748232878,-5121.13,0.00013699,2]
[323158199,1713748232887,-200.0,0.00013699,2]
[323158200,1713748232897,-1500.0,0.00013699,2]
[323158201,1713748232906,-250.0,0.000137,2]
[323158202,1713748232917,-371.79860069,0.000137,2]
[323158203,1713748232926,-1250.0,0.000137,2]
[323158204,1713748232936,-1199.7711,0.00013795,2]
[323158205,1713748232948,-680.438,0.00013795,2]
[323158206,1713748232958,-2500.0,0.00013795,2]
[323158207,1713748232968,-165.4659354,0.0001381,2]
[323158208,1713748232978,-172.05665627,0.00013855,2]
[323158209,1713748232988,-3863.06107852,0.00013855,2]
[323158210,1713748232997,-252.43351437,0.00013855,2]
[323158211,1713748233006,-245.39093271,0.00013885,2]
[323158212,1713748233015,-676.1,0.00013885,2]
[323158213,1713748233025,-676.1,0.00013885,2]
[323158214,1713748233034,-676.1,0.00013885,2]
[323158215,1713748233043,-676.1,0.00013885,2]
[323158216,1713748233053,-676.1,0.00013885,2]
[323158217,1713748233063,-676.1,0.00013885,2]
[323158218,1713748233074,-676.1,0.00013885,2]
[323158219,1713748233083,-676.1,0.00013885,2]
[323158220,1713748233092,-977.1,0.00013885,3]
[323158221,1713748233102,-488.55,0.00013885,3]
[323158222,1713748233112,-244.28,0.00013885,3]
[323158223,1713748233121,-732.85,0.00013885,3]
[323158224,1713748233131,-625.71776094,0.00013894,2]
[323158225,1713748233141,-300.67338635,0.00013894,2]
[323158226,1713748233151,-300.0,0.00013894,2]
[323158227,1713748233160,-561.89782426,0.00013894,2]
[323158228,1713748233170,-663.0,0.00013895,2]
[323158229,1713748233179,-277963.65918461,0.00013895,2]
[323158235,1713748238179,-1299.97148334,0.00013895,2]
[323158236,1713748238190,-384.62629453,0.00013895,2]
[323158310,1713748240694,-231.56067776,0.00013855,2]
[323158312,1713748240707,-645.0,0.00013895,2]
[323158314,1713748240717,-1683.43932224,0.00013895,2]
[323158402,1713748241962,-300.42500006,0.00013895,2]
[323158413,1713748243394,-758.32918042,0.00013895,2]
[323158414,1713748243481,-252.87478297,0.00013895,2]
[323158415,1713748243506,-616.289184,0.00013895,2]
[323158416,1713748243517,-19053.41832,0.00013895,2]
[323158422,1713748246453,-1222.17659115,0.00013895,2]
[323158423,1713748246466,-456.80005735,0.00013895,2]
[323158424,1713748371187,472.92,0.00011514,2]
[323158425,1713748848535,466.65,0.00011127,2]
[323158426,1713749156289,900.89954167,0.00015,7]
[323158436,1713749296007,700.0,0.00015,14]
[323158440,1713749330295,459.82,0.00011031,2]
[323158452,1713749432475,-779.54000024,0.00012921,2]
[323158453,1713749432594,-255.09502197,0.00012921,2]
[323158454,1713749432640,-344.00858295,0.00012921,2]
[323158455,1713749432649,-441.8,0.00012923,2]
[323158456,1713749432658,-560.97851687,0.00012938,2]
[323158457,1713749432686,-1668.09881461,0.00012938,2]
[323158549,1713749436498,1750.0,0.00012,2]
[323158587,1713749438412,-565.34977281,0.0001292,2]
[323158588,1713749438423,-10379.83893722,0.00012938,2]
[323158589,1713749438434,-150.0,0.00012939,2]
[323158590,1713749438449,-12535.56799244,0.00012939,2]
[323158591,1713749438460,-1949.35,0.00012943,2]
[323158592,1713749438470,-230.4,0.00012998,2]
[323158593,1713749438481,-769.6,0.00013176,2]
[323158594,1713749438494,-174.96,0.00013262,2]
[323158595,1713749438504,-106.91294436,0.00013295,2]
[323158596,1713749438517,-352.90705564,0.00013295,2]
[323158597,1713749438527,-500.0,0.00013425,2]
[323158598,1713749438537,-175.22,0.00013578,2]
[323158599,1713749438546,-1042.49,0.00013678,2]
[323158600,1713749438555,-418.17,0.00013678,2]
[323158601,1713749438565,-500.0,0.00013699,2]
[323158602,1713749438574,-2751.0,0.00013699,2]
[323158603,1713749438583,-200.0,0.00013699,2]
[323158604,1713749438592,-1500.0,0.00013699,2]
[323158605,1713749438601,-2560.56,0.00013699,2]
[323158606,1713749438610,-300.0,0.000137,2]
[323158607,1713749438619,-527.43,0.000137,2]
[323158608,1713749438628,-827.94,0.000137,2]
[323158609,1713749438637,-150.0,0.000137,2]
[323158610,1713749438646,-270.11,0.000137,2]
[323158611,1713749438656,-700.46,0.000137,2]
[323158612,1713749438665,-1250.0,0.000137,2]
[323158613,1713749438674,-250.0,0.000137,2]
[323158614,1713749438683,-1000.0,0.00013795,2]
[323158615,1713749438692,-824.36402021,0.00013795,2]
[323158616,1713749438715,-1338.14017131,0.00013795,2]
[323158617,1713749438742,-441.13720848,0.00013795,2]
[323158618,1713749438751,-499.99,0.00013795,2]
[323158619,1713749438761,-812.76545796,0.00013795,2]
[323158620,1713749438772,-4190.85538286,0.00013795,2]
[323158621,1713749438805,-182.55,0.00013007,2]
[323158622,1713749438814,-1295.71174416,0.00013795,2]
[323158624,1713749438879,-1424.15060625,0.00013795,2]
[323158626,1713749438919,-2514.14874685,0.00013795,2]
[323158631,1713749441059,-2539.52959955,0.00013795,2]
[323158632,1713749441071,-287.26614426,0.00013795,2]
[323158633,1713749441138,-3030.32820405,0.00013795,2]
[323158634,1713749441179,-1050.0,0.00013795,2]
[323158657,1713749443379,-2219.65091406,0.00013795,2]
[323158658,1713749443390,-3541.13932205,0.00013855,2]
[323158659,1713749443399,-201.94681148,0.00013855,2]
[323158660,1713749443409,-150.96,0.00013885,2]
[323158661,1713749443418,-150.96,0.00013885,2]
[323158662,1713749443427,-150.96,0.00013885,2]
[323158663,1713749443437,-150.96,0.00013885,2]
[323158664,1713749443449,-150.96,0.00013885,2]
[323158665,1713749443458,-150.96,0.00013885,2]
[323158666,1713749443471,-569.97,0.00013885,3]
[323158667,1713749443481,-285.77,0.00013885,3]
[323158668,1713749443494,-561.76295867,0.00013885,3]
[323158669,1713749443541,-295.55704133,0.00013885,3]
[323158670,1713749443550,-308.44295867,0.0001389,2]
[323158671,1713749443562,-3033.69858913,0.0001389,2]
[323158672,1713749443744,-5740.93484952,0.0001389,2]
[323158675,1713749443944,-1165.94010356,0.0001389,2]
[323158676,1713749443960,-1169.08819398,0.0001389,2]
[323158678,1713749443972,-501.99527818,0.0001389,2]
[323158680,1713749443984,-748.1124645,0.0001389,2]
[323158690,1713749446742,-2298.23887309,0.0001389,2]
[323158691,1713749446888,-327.9058772,0.0001389,2]
[323158692,1713749446900,-6026.70318445,0.0001389,2]
[323158693,1713749447098,-3360.75855785,0.0001389,2]
[323158695,1713749588025,184.1703424,0.000224,30]
[323158696,1713749680615,1142.57,0.00012,2]
[323158697,1713749798091,460.88,0.00011095,2]
[323158699,1713750228047,10000.0,0.00012,2]
[323158700,1713750287986,5000.0,0.000145,5]
[323158701,1713750335018,2110.68,0.00012,2]
[323158702,1713750388200,451.95,0.00010911,2]
[323158708,1713750631795,-280.56667432,0.00012761,2]
[323158709,1713750631807,-6843.54338922,0.00012761,2]
[323158710,1713750631855,-5484.80620516,0.00012761,2]
[323158711,1713750631869,-3659.82127625,0.00012762,2]
[323158712,1713750631889,-1739.4,0.00012762,2]
[323158713,1713750631901,-397.08384421,0.00012762,2]
[323158714,1713750631944,-338.47689987,0.00012762,2]
[323158715,1713750631955,-1311.52310013,0.00012762,2]
[323158716,1713750631966,-12994.93015228,0.00012762,2]
[323158727,1713750637574,-771.65526251,0.00012762,2]
[323158728,1713750637640,-1386.70946475,0.00012762,2]
[323158729,1713750637649,-174.96,0.00012812,2]
[323158730,1713750637659,-163.8231207,0.00012861,2]
[323158731,1713750637842,-396.9368793,0.00012861,2]
[323158732,1713750637862,-441.36,0.0001291,2]
[323158733,1713750637885,-184.32,0.00012935,2]
[323158734,1713750637908,-176.6,0.00012974,2]
[323158735,1713750637919,-150.0,0.00013096,2]
[323158736,1713750637929,-815.68,0.00013116,2]
[323158737,1713750637940,-499.99,0.00013175,2]
[323158738,1713750637957,-451.95,0.00013175,2]
[323158739,1713750637968,-166.013,0.00013298,2]
[323158740,1713750637978,-908.35,0.000133,2]
[323158741,1713750637989,-412.36,0.000133,2]
[323158742,1713750637998,-500.0,0.00013425,2]
[323158743,1713750638009,-425.62,0.000135,2]
[323158745,1713750638019,-927.04,0.000135,2]
[323158747,1713750638029,-909.83,0.000135,2]
[323158749,1713750638040,-413.28,0.000135,2]
[323158751,1713750638051,-909.83,0.000135,2]
[323158754,1713750638062,-413.28,0.000135,2]
[323158756,1713750638072,-2711.92728469,0.00013519,2]
[323158758,1713750638081,-300.67,0.00013616,2]
[323158759,1713750638091,-151.81,0.00013616,2]
[323158761,1713750638101,-302.01,0.00013616,2]
[323158763,1713750638110,-375.74,0.00013616,2]
[323158765,1713750638120,-424.72,0.00013616,2]
[323158767,1713750638130,-418.99,0.00013616,2]
[323158769,1713750638140,-150.0,0.00013616,2]
[323158771,1713750638149,-418.99,0.00013616,2]
[323158773,1713750638160,-150.0,0.00013616,2]
[323158775,1713750638169,-243.28,0.00013616,2]
[323158777,1713750638179,-150.0,0.00013616,2]
[323158779,1713750638189,-1500.0,0.00013699,2]
[323158781,1713750638203,-500.0,0.00013699,2]
[323158783,1713750638213,-1418.09,0.00013699,2]
[323158785,1713750638222,-200.0,0.00013699,2]
[323158787,1713750638232,-2751.0,0.00013699,2]
[323158789,1713750638242,-1000.0,0.000137,2]
[323158791,1713750638251,-1250.0,0.000137,2]
[323158793,1713750638261,-275.77098893,0.0001375,2]
[323158795,1713750638270,-213.5825017,0.00013754,2]
[323158797,1713750638279,-331.0852,0.00013795,2]
[323158799,1713750638289,-263.2518,0.00013795,2]
[323158801,1713750638299,-1654.89814817,0.00013795,2]
[323158803,1713750638311,-3135.29369272,0.00013795,2]
[323158813,1713750639747,-6604.82455911,0.00013795,2]
[323158814,1713750639758,-3278.87275742,0.000138,2]
[323158815,1713750639768,-855.76,0.00013884,3]
[323158816,1713750639778,-285.24,0.00013885,3]
[323158817,1713750639787,-194.52752715,0.00013889,2]
[323158818,1713750639797,-557.2912164,0.0001389,2]
[323158819,1713750639806,-952.48393992,0.0001389,2]
[323158827,1713750642593,-299.88743045,0.0001389,2]
[323158828,1713750642817,-557.8464069,0.0001389,2]
[323158835,1713750646241,-693.42,0.00013885,3]
[323158836,1713750646252,-6371.44610582,0.0001389,2]
[323158837,1713750646288,-755.15588704,0.0001389,2]
[323158839,1713750902199,451.2,0.00011109,2]
[323158840,1713751247067,1750.0,0.00012,2]
[323158841,1713751459664,440.7,0.0001086,2]
[323158862,1713751831986,-308.60746084,0.00012464,2]
[323158869,1713751832164,-1291.36512063,0.00012464,2]
[323158870,1713751832214,-647.52246,0.00012464,2]
[323158871,1713751837830,-3445.12346935,0.00012463,2]
[323158872,1713751837939,-531.79482725,0.00012463,2]
[323158873,1713751837950,-655.47272516,0.00012463,2]
[323158874,1713751837995,-3140.0,0.00012463,2]
[323158875,1713751838052,-2793.76467969,0.00012463,2]
[323158876,1713751838062,-10361.42122723,0.00012464,2]
[323158877,1713751838072,-3176.69909921,0.00012498,2]
[323158878,1713751838081,-21779.55374051,0.000125,3]
[323158879,1713751838090,-13791.1,0.00012651,2]
[323158880,1713751838099,-176.6,0.00012734,2]
[323158881,1713751838108,-852.54,0.00012764,2]
[323158882,1713751838117,-543.83,0.00012773,2]
[323158883,1713751838126,-184.32,0.00012833,2]
[323158884,1713751838136,-101347.98146248,0.00013,2]
[323158885,1713751838145,-440.7,0.00013124,2]
[323158886,1713751838155,-413.05,0.00013341,2]
[323158887,1713751838165,-500.0,0.00013425,2]
[323158888,1713751838174,-150.0,0.00013431,2]
[323158889,1713751838183,-909.46,0.00013441,2]
[323158890,1713751838193,-837.98,0.000135,2]
[323158891,1713751838202,-150.0,0.00013585,2]
[323158892,1713751838212,-499.99,0.00013653,2]
[323158893,1713751838222,-2751.0,0.00013699,2]
[323158894,1713751838236,-1500.0,0.00013699,2]
[323158895,1713751838246,-1989.33,0.00013699,2]
[323158896,1713751838255,-200.0,0.00013699,2]
[323158897,1713751838264,-500.0,0.00013699,2]
[323158898,1713751838274,-250.0,0.000137,2]
[323158899,1713751838283,-1250.0,0.000137,2]
[323158900,1713751838292,-159.92853375,0.00013756,2]
[323158901,1713751838303,-273.443,0.00013793,2]
[323158902,1713751838313,-1000.0,0.00013794,2]
[323158903,1713751838322,-343.3913,0.00013795,2]
[323158904,1713751838331,-824.364,0.00013795,2]
[323158905,1713751838340,-175.82223927,0.00013795,2]
[323158906,1713751838350,-162.51347916,0.00013795,2]
[323158907,1713751838359,-512.63109265,0.00013795,2]
[323158908,1713751838369,-800.0,0.00013863,2]
[323158909,1713751838379,-800.0,0.00013863,2]
[323158910,1713751838388,-800.0,0.00013863,2]
[323158911,1713751838397,-36477.83317971,0.0001389,2]
[323158912,1713751838407,-10000.0,0.00013892,2]
[323158913,1713751838417,-1993.92102893,0.00013893,2]
[323158915,1713751838427,-14535.34141188,0.00013893,2]
[323158917,1713751838436,-1392.0551993,0.00013893,2]
[323158919,1713751838445,-193.66267,0.00013893,2]
[323158921,1713751838455,-155.000144,0.00013893,2]
[323158922,1713751838465,-151.0,0.00013893,2]
[323158923,1713751838474,-155.073995,0.00013893,2]
[323158924,1713751838484,-151.84191,0.00013893,2]
[323158925,1713751838493,-160.484749,0.00013893,2]
[323158926,1713751838503,-153.065654,0.00013893,2]
[323158927,1713751838513,-151.0,0.00013893,2]
[323158928,1713751838522,-151.0,0.00013893,2]
[323158929,1713751838531,-151.0,0.00013893,2]
[323158930,1713751838541,-151.0,0.00013893,2]
[323158931,1713751838550,-151.0,0.00013893,2]
[323158932,1713751838559,-152.530607,0.00013893,2]
[323158933,1713751838568,-151.0,0.00013893,2]
[323158934,1713751838577,-151.0,0.00013893,2]
[323158935,1713751838587,-154.215207,0.00013893,2]
[323158936,1713751838596,-235.690183,0.00013893,2]
[323158937,1713751838605,-152.345519,0.00013893,2]
[323158938,1713751838615,-151.0,0.00013893,2]
[323158939,1713751838624,-151.0,0.00013893,2]
[323158940,1713751838633,-151.0,0.00013893,2]
[323158941,1713751838643,-229.946195,0.00013893,2]
[323158942,1713751838652,-151.0,0.00013893,2]
[323158943,1713751838662,-300.0,0.00013894,2]
[323158944,1713751838673,-1001.1393,0.00013894,2]
[323158945,1713751838682,-7231.09355046,0.00013894,2]
[323158946,1713751838691,-2346.66563379,0.00013894,2]
[323158947,1713751838701,-151.0,0.00013894,2]
[323158948,1713751838710,-151.0,0.00013894,2]
[323158949,1713751838719,-151.0,0.00013894,2]
[323158950,1713751838729,-151.0,0.00013894,2]
[323158951,1713751838738,-151.0,0.00013894,2]
[323158952,1713751838748,-151.0,0.00013894,2]
[323158953,1713751838757,-224.00477,0.00013894,2]
[323158954,1713751838766,-151.0,0.00013894,2]
[323158955,1713751838776,-151.0,0.00013894,2]
[323158956,1713751838785,-4639.2002624,0.00013894,2]
[323158957,1713751838797,-585.0,0.00013895,2]
[323158958,1713751838807,-772759.71248847,0.00013895,2]
[323158959,1713751838820,-417.82140746,0.00013895,2]
[323158962,1713751840052,-974.90789925,0.00013895,2]
[323158980,1713751842999,-32390.47414407,0.00013895,2]
[323158981,1713751843011,-521.4404163,0.00013895,2]
[323158982,1713751843022,-555.76244293,0.00013895,2]
[323158984,1713751846387,-575.0,0.00013895,2]
[323158985,1713751846404,-1836.31591116,0.00013895,2]
[323158986,1713751846440,-966.75003935,0.00013895,2]
[323158987,1713751846511,-861.80000004,0.00013895,2]
[323158988,1713751846529,-262.40826702,0.00013895,2]
[323158989,1713751846547,-1682.538518,0.00013895,2]
[323158990,1713751846565,-426.82700001,0.00013895,2]
[323158992,1713751950388,408.09,0.00011552,2]
[323158994,1713752336337,336.67356092,0.0002,30]
[323158995,1713752357772,860.71777869,0.0002,30]
[323158996,1713752448671,398.81,0.00011157,2]
[323159012,1713753037958,-155.0,0.00012996,2]
[323159013,1713753037968,-1265.81819248,0.00012996,2]
[323159014,1713753037978,-1715.98180752,0.00012996,2]
[323159015,1713753038013,-17791.12775645,0.00012996,2]
[323159016,1713753038022,-12608.9162687,0.00012996,2]
[323159017,1713753038031,-7500.0,0.00012997,2]
[323159018,1713753038040,-4306.0517902,0.00012997,2]
[323159019,1713753038050,-4306.0517902,0.00012997,2]
[323159020,1713753038058,-4306.0517902,0.00012997,2]
[323159021,1713753038067,-160.07987315,0.00012999,2]
[323159022,1713753038076,-361.88,0.0001301,2]
[323159023,1713753038085,-1000.0,0.00013061,2]
[323159024,1713753038094,-174.96,0.00013131,2]
[323159025,1713753038103,-500.0,0.00013425,2]
[323159026,1713753038112,-5259.9581,0.00013694,2]
[323159027,1713753038122,-212.72,0.00013699,2]
[323159028,1713753038131,-1451.0,0.00013699,2]
[323159029,1713753038142,-500.0,0.00013699,2]
[323159030,1713753038151,-200.0,0.00013699,2]
[323159031,1713753038391,-1500.0,0.00013699,2]
[323159032,1713753038408,-994.66,0.00013699,2]
[323159033,1713753038417,-2751.0,0.00013699,2]
[323159034,1713753038426,-1250.0,0.000137,2]
[323159035,1713753038436,-250.0,0.000137,2]
[323159036,1713753038445,-157.36703976,0.00013756,2]
[323159037,1713753038454,-294.7473,0.00013795,2]
[323159038,1713753038463,-2014.4995,0.00013795,2]
[323159039,1713753038472,-765.78868045,0.000138,2]
[323159040,1713753038481,-162.51347916,0.000138,2]
[323159041,1713753038490,-1394.52139726,0.000138,2]
[323159042,1713753038499,-570.48,0.00013875,3]
[323159043,1713753038508,-36281.7398438,0.00013884,2]
[323159044,1713753038518,-218.8560674,0.00013884,2]
[323159045,1713753038530,-45129.4891171,0.00013885,2]
[323159046,1713753038539,-1376.0696077,0.00013885,2]
[323159047,1713753038548,-479.48515001,0.00013885,2]
[323159048,1713753038557,-11649.1349542,0.00013885,2]
[323159049,1713753038566,-155.18084452,0.00013894,2]
[323159050,1713753038575,-546146.21095698,0.00013895,2]
[323159051,1713753038584,-160.07987315,0.000139,2]
[323159052,1713753038594,-408.98668893,0.00014,2]
[323159053,1713753038603,-1800.0,0.00014,2]
[323159054,1713753038612,-150.48,0.00014,2]
[323159055,1713753038624,-1150.0,0.00014,2]
[323159056,1713753038633,-170.0,0.0001406,2]
[323159057,1713753038647,-162.51347916,0.00014167,2]
[323159058,1713753038657,-200.0,0.00014182,2]
[323159059,1713753038666,-765.78868039,0.00014202,2]
[323159060,1713753038676,-2840.69792445,0.00014216,2]
[323159061,1713753038685,-2047.71012366,0.00014218,2]
[323159062,1713753038696,-1269.01266679,0.00014234,2]
[323159063,1713753038705,-1000.0,0.000143,2]
[323159064,1713753038715,-256.67867429,0.00014301,2]
[323159065,1713753038724,-256.67867429,0.00014317,2]
[323159066,1713753038734,-256.67867429,0.00014333,2]
[323159067,1713753038742,-237.79715708,0.00014346,2]
[323159068,1713753038752,-256.67867429,0.0001435,2]
[323159069,1713753038761,-237.79715708,0.00014359,2]
[323159070,1713753038770,-237.79715708,0.00014365,2]
[323159071,1713753038779,-256.67867429,0.00014366,2]
[323159072,1713753038790,-237.79715708,0.00014371,2]
[323159073,1713753038799,-237.79715708,0.00014372,2]
[323159074,1713753038809,-237.79715708,0.00014378,2]
[323159075,1713753038818,-256.67867429,0.00014382,2]
[323159076,1713753038827,-237.79715708,0.00014387,2]
[323159077,1713753038836,-237.79715708,0.00014395,2]